[Event "Early Titled Tuesday Blitz | February 8 2022"]
[White "Atzl, Florian"]
[Black "Iskusnyh, Sergei"]
[WhiteFideId "1635891"]
[BlackFideId "4120027"]
[WhiteElo "2085"]
[BlackElo "2492"]
[Result "0-1"]
[Round "02"]
[TimeControl "180+1"]
[Date "2022.02.08"]
[WhiteClock "0:00:55"]
[BlackClock "0:01:03"]

1. e4 {[%clk 0:03:00]}  e6 {[%clk 0:02:58]} 2. d4 {[%clk 0:03:01]}  d5 {[%clk 0:02:57]} 3. Nd2 {[%clk 0:03:01]}  c5 {[%clk 0:02:56]} 4. exd5 {[%clk 0:02:52]}  exd5 {[%clk 0:02:55]} 5. Ngf3 {[%clk 0:02:52]}  Nc6 {[%clk 0:02:53]} 6. Bb5 {[%clk 0:02:51]}  cxd4 {[%clk 0:02:51]} 7. O-O {[%clk 0:02:49]}  Bd6 {[%clk 0:02:51]} 8. Re1+ {[%clk 0:02:48]}  Ne7 {[%clk 0:02:50]} 9. Nxd4 {[%clk 0:02:47]}  O-O {[%clk 0:02:49]} 10. N2f3 {[%clk 0:02:47]}  Bg4 {[%clk 0:02:46]} 11. h3 {[%clk 0:02:46]}  Bh5 {[%clk 0:02:44]} 12. Nb3 {[%clk 0:02:36]}  Bc7 {[%clk 0:02:37]} 13. Bg5 {[%clk 0:02:33]}  Qd6 {[%clk 0:02:34]} 14. Nbd2 {[%clk 0:02:19]}  h6 {[%clk 0:02:22]} 15. Be3 {[%clk 0:02:05]}  Nf5 {[%clk 0:02:10]} 16. Nf1 {[%clk 0:02:04]}  Nxe3 {[%clk 0:02:06]} 17. Rxe3 {[%clk 0:02:01]}  Rad8 {[%clk 0:01:51]} 18. Ng3 {[%clk 0:01:52]}  Bg6 {[%clk 0:01:50]} 19. Nh4 {[%clk 0:01:45]}  Bb6 {[%clk 0:01:47]} 20. Rf3 {[%clk 0:01:29]}  Nd4 {[%clk 0:01:45]} 21. Nxg6 {[%clk 0:01:11]}  Nxf3+ {[%clk 0:01:43]} 22. Qxf3 {[%clk 0:01:12]}  fxg6 {[%clk 0:01:43]} 23. Qg4 {[%clk 0:01:10]}  Bxf2+ {[%clk 0:01:36]} 24. Kh1 {[%clk 0:01:10]}  Bxg3 {[%clk 0:01:28]} 25. Bd3 {[%clk 0:01:09]}  Rf6 {[%clk 0:01:26]} 26. Rd1 {[%clk 0:01:10]}  Rdf8 {[%clk 0:01:24]} 27. Be2 {[%clk 0:01:08]}  Kh7 {[%clk 0:01:18]} 28. Bf3 {[%clk 0:01:07]}  Rxf3 {[%clk 0:01:17]} 29. gxf3 {[%clk 0:01:07]}  Bf4 {[%clk 0:01:16]} 30. Rg1 {[%clk 0:01:05]}  Rf5 {[%clk 0:01:13]} 31. Rd1 {[%clk 0:00:58]}  Rg5 {[%clk 0:01:10]} 32. Qh4 {[%clk 0:00:59]}  Qe6 {[%clk 0:01:04]} 33. Qxf4 {[%clk 0:00:54]}  Qxh3+ {[%clk 0:01:03]} 34. Qh2 {[%clk 0:00:55]}  Qxf3+ {[%clk 0:01:03]} 0-1


[Site "https://www.chess.com"]

[Event "Early Titled Tuesday Blitz | February 8 2022"]
[White "Avila Pavas, Santiago"]
[Black "Redzisz, Michal"]
[WhiteFideId "4437128"]
[BlackFideId "21816107"]
[WhiteElo "2242"]
[BlackElo "1961"]
[Result "0-1"]
[Round "02"]
[TimeControl "180+1"]
[Date "2022.02.08"]
[WhiteClock "0:01:28"]
[BlackClock "0:01:01"]

1. d4 {[%clk 0:03:00]}  Nf6 {[%clk 0:02:59]} 2. Nf3 {[%clk 0:03:01]}  c5 {[%clk 0:02:59]} 3. d5 {[%clk 0:03:01]}  e6 {[%clk 0:02:59]} 4. Nc3 {[%clk 0:03:01]}  exd5 {[%clk 0:03:00]} 5. Nxd5 {[%clk 0:03:02]}  Nxd5 {[%clk 0:02:47]} 6. Qxd5 {[%clk 0:03:03]}  d6 {[%clk 0:02:46]} 7. Bf4 {[%clk 0:02:55]}  Nc6 {[%clk 0:02:41]} 8. O-O-O {[%clk 0:02:55]}  Be6 {[%clk 0:02:40]} 9. Qh5 {[%clk 0:02:54]}  Qa5 {[%clk 0:02:30]} 10. a3 {[%clk 0:02:52]}  O-O-O {[%clk 0:02:24]} 11. e3 {[%clk 0:02:30]}  Be7 {[%clk 0:02:17]} 12. Be2 {[%clk 0:02:30]}  h6 {[%clk 0:02:09]} 13. Rd2 {[%clk 0:02:30]}  g6 {[%clk 0:02:06]} 14. Qxh6 {[%clk 0:02:12]}  Rxh6 {[%clk 0:02:05]} 15. Bxh6 {[%clk 0:02:13]}  b5 {[%clk 0:01:55]} 16. Ng5 {[%clk 0:01:47]}  b4 {[%clk 0:01:33]} 17. Nxe6 {[%clk 0:01:46]}  fxe6 {[%clk 0:01:34]} 18. Bg4 {[%clk 0:01:43]}  bxa3 {[%clk 0:01:23]} 19. Bxe6+ {[%clk 0:01:43]}  Kc7 {[%clk 0:01:23]} 20. Rdd1 {[%clk 0:01:31]}  axb2+ {[%clk 0:01:02]} 21. Kxb2 {[%clk 0:01:29]}  Bf6+ {[%clk 0:01:02]} 22. Kc1 {[%clk 0:01:28]}  Bc3 {[%clk 0:01:01]} 0-1


[Site "https://www.chess.com"]

[Event "Early Titled Tuesday Blitz | February 8 2022"]
[White "Batsiashvili, Nino"]
[Black "Serikbay, Assel"]
[WhiteFideId "13602993"]
[BlackFideId "13706799"]
[WhiteElo "2230"]
[BlackElo "2130"]
[Result "1-0"]
[Round "02"]
[TimeControl "180+1"]
[Date "2022.02.08"]
[WhiteClock "0:00:20"]
[BlackClock "0:00:14"]

1. d4 {[%clk 0:03:00]}  Nf6 {[%clk 0:02:59]} 2. c4 {[%clk 0:03:00]}  g6 {[%clk 0:02:59]} 3. Nc3 {[%clk 0:02:59]}  d5 {[%clk 0:02:59]} 4. cxd5 {[%clk 0:02:59]}  Nxd5 {[%clk 0:03:00]} 5. e4 {[%clk 0:02:59]}  Nxc3 {[%clk 0:03:00]} 6. bxc3 {[%clk 0:03:00]}  Bg7 {[%clk 0:03:00]} 7. h3 {[%clk 0:03:00]}  c5 {[%clk 0:03:00]} 8. Nf3 {[%clk 0:03:00]}  Nc6 {[%clk 0:02:58]} 9. Be3 {[%clk 0:02:32]}  cxd4 {[%clk 0:02:50]} 10. cxd4 {[%clk 0:02:28]}  Qa5+ {[%clk 0:02:48]} 11. Bd2 {[%clk 0:02:25]}  Qa3 {[%clk 0:02:41]} 12. d5 {[%clk 0:02:16]}  Ne5 {[%clk 0:02:27]} 13. Nxe5 {[%clk 0:02:15]}  Bxe5 {[%clk 0:02:23]} 14. Bb5+ {[%clk 0:02:12]}  Bd7 {[%clk 0:01:51]} 15. Bxd7+ {[%clk 0:02:12]}  Kxd7 {[%clk 0:01:51]} 16. Rb1 {[%clk 0:02:13]}  Qa6 {[%clk 0:01:38]} 17. f4 {[%clk 0:01:36]}  Bg7 {[%clk 0:01:34]} 18. Qg4+ {[%clk 0:01:27]}  e6 {[%clk 0:01:28]} 19. dxe6+ {[%clk 0:01:22]}  fxe6 {[%clk 0:01:27]} 20. Kf2 {[%clk 0:01:21]}  Bd4+ {[%clk 0:01:20]} 21. Kg3 {[%clk 0:01:08]}  Qd3+ {[%clk 0:01:06]} 22. Kh2 {[%clk 0:01:08]}  Qxe4 {[%clk 0:00:23]} 23. Rhe1 {[%clk 0:01:01]}  Qf5 {[%clk 0:00:23]} 24. Rxb7+ {[%clk 0:00:57]}  Kc8 {[%clk 0:00:23]} 25. Qf3 {[%clk 0:00:33]}  Qd5 {[%clk 0:00:21]} 26. Qxd5 {[%clk 0:00:31]}  exd5 {[%clk 0:00:17]} 27. Ree7 {[%clk 0:00:31]}  Bb6 {[%clk 0:00:18]} 28. Rxh7 {[%clk 0:00:25]}  Rxh7 {[%clk 0:00:17]} 29. Rxh7 {[%clk 0:00:26]}  a5 {[%clk 0:00:17]} 30. Rg7 {[%clk 0:00:23]}  Ra6 {[%clk 0:00:14]} 31. g4 {[%clk 0:00:20]} 1-0


[Site "https://www.chess.com"]

[Event "Early Titled Tuesday Blitz | February 8 2022"]
[White "Borisova, Ekaterina"]
[Black "Berdychevskaya, Natasha"]
[WhiteFideId "34124184"]
[BlackFideId "4159322"]
[WhiteElo "2034"]
[BlackElo "1780"]
[Result "0-1"]
[Round "02"]
[TimeControl "180+1"]
[Date "2022.02.08"]
[WhiteClock "0:00:11"]
[BlackClock "0:00:12"]

1. d4 {[%clk 0:02:55]}  d5 {[%clk 0:02:59]} 2. c4 {[%clk 0:02:55]}  dxc4 {[%clk 0:02:59]} 3. e3 {[%clk 0:02:55]}  Nf6 {[%clk 0:02:58]} 4. Bxc4 {[%clk 0:02:55]}  e6 {[%clk 0:02:58]} 5. Nf3 {[%clk 0:02:52]}  c5 {[%clk 0:02:59]} 6. O-O {[%clk 0:02:51]}  Nc6 {[%clk 0:02:59]} 7. dxc5 {[%clk 0:02:48]}  Qxd1 {[%clk 0:02:57]} 8. Rxd1 {[%clk 0:02:49]}  Bxc5 {[%clk 0:02:57]} 9. a3 {[%clk 0:02:49]}  a6 {[%clk 0:02:54]} 10. b4 {[%clk 0:02:49]}  Be7 {[%clk 0:02:53]} 11. Bb2 {[%clk 0:02:49]}  b5 {[%clk 0:02:53]} 12. Be2 {[%clk 0:02:44]}  Bb7 {[%clk 0:02:53]} 13. Nbd2 {[%clk 0:02:30]}  O-O {[%clk 0:02:46]} 14. Nb3 {[%clk 0:02:27]}  Rad8 {[%clk 0:02:45]} 15. Rac1 {[%clk 0:02:26]}  Rxd1+ {[%clk 0:02:43]} 16. Bxd1 {[%clk 0:02:24]}  Nd7 {[%clk 0:02:22]} 17. Nfd4 {[%clk 0:02:06]}  Nxd4 {[%clk 0:02:17]} 18. Bxd4 {[%clk 0:02:03]}  Rc8 {[%clk 0:02:16]} 19. Rxc8+ {[%clk 0:01:55]}  Bxc8 {[%clk 0:02:17]} 20. Bf3 {[%clk 0:01:55]}  Kf8 {[%clk 0:01:57]} 21. Na5 {[%clk 0:01:52]}  Bf6 {[%clk 0:01:38]} 22. Bc6 {[%clk 0:01:20]}  Bxd4 {[%clk 0:01:20]} 23. Bxd7 {[%clk 0:01:20]}  Bxd7 {[%clk 0:01:15]} 24. exd4 {[%clk 0:01:20]}  Ke7 {[%clk 0:01:15]} 25. f3 {[%clk 0:01:13]}  Kd6 {[%clk 0:01:10]} 26. Kf2 {[%clk 0:01:14]}  Kd5 {[%clk 0:01:05]} 27. Ke3 {[%clk 0:01:14]}  g5 {[%clk 0:01:00]} 28. Kd3 {[%clk 0:01:12]}  h5 {[%clk 0:00:52]} 29. Nb7 {[%clk 0:01:06]}  Bc8 {[%clk 0:00:51]} 30. Nd8 {[%clk 0:00:59]}  f6 {[%clk 0:00:44]} 31. Nf7 {[%clk 0:00:55]}  h4 {[%clk 0:00:37]} 32. Nh6 {[%clk 0:00:51]}  e5 {[%clk 0:00:34]} 33. dxe5 {[%clk 0:00:44]}  Kxe5 {[%clk 0:00:33]} 34. g3 {[%clk 0:00:33]}  hxg3 {[%clk 0:00:32]} 35. hxg3 {[%clk 0:00:34]}  Kd5 {[%clk 0:00:26]} 36. Nf7 {[%clk 0:00:25]}  Bf5+ {[%clk 0:00:25]} 37. Ke3 {[%clk 0:00:25]}  Be6 {[%clk 0:00:22]} 38. Nh8 {[%clk 0:00:18]}  Kc4 {[%clk 0:00:19]} 39. Ng6 {[%clk 0:00:18]}  Kb3 {[%clk 0:00:18]} 40. Nf8 {[%clk 0:00:18]}  Bc8 {[%clk 0:00:15]} 41. Nh7 {[%clk 0:00:18]}  Kxa3 {[%clk 0:00:15]} 42. Nxf6 {[%clk 0:00:18]}  Kxb4 {[%clk 0:00:15]} 43. Ne4 {[%clk 0:00:12]}  g4 {[%clk 0:00:14]} 44. f4 {[%clk 0:00:06]}  a5 {[%clk 0:00:14]} 45. Nd6 {[%clk 0:00:06]}  Bd7 {[%clk 0:00:11]} 46. Kd4 {[%clk 0:00:03]}  a4 {[%clk 0:00:11]} 47. f5 {[%clk 0:00:04]}  a3 {[%clk 0:00:11]} 48. f6 {[%clk 0:00:04]}  Be6 {[%clk 0:00:11]} 49. Ke5 {[%clk 0:00:02]}  Bg8 {[%clk 0:00:11]} 50. Kf4 {[%clk 0:00:02]}  a2 {[%clk 0:00:10]} 51. f7 {[%clk 0:00:03]}  Bxf7 {[%clk 0:00:09]} 52. Nxf7 {[%clk 0:00:03]}  a1=Q {[%clk 0:00:09]} 53. Ne5 {[%clk 0:00:04]}  Qxe5+ {[%clk 0:00:08]} 54. Kxe5 {[%clk 0:00:04]}  Kc4 {[%clk 0:00:09]} 55. Kf4 {[%clk 0:00:05]}  b4 {[%clk 0:00:10]} 56. Kxg4 {[%clk 0:00:06]}  b3 {[%clk 0:00:10]} 57. Kf5 {[%clk 0:00:07]}  b2 {[%clk 0:00:11]} 58. g4 {[%clk 0:00:08]}  b1=Q+ {[%clk 0:00:11]} 59. Kf6 {[%clk 0:00:09]}  Qb6+ {[%clk 0:00:10]} 60. Kg7 {[%clk 0:00:08]}  Qc7+ {[%clk 0:00:10]} 61. Kh6 {[%clk 0:00:08]}  Qd6+ {[%clk 0:00:10]} 62. Kh5 {[%clk 0:00:08]}  Qf8 {[%clk 0:00:10]} 63. g5 {[%clk 0:00:09]}  Qg8 {[%clk 0:00:11]} 64. g6 {[%clk 0:00:09]}  Kd5 {[%clk 0:00:12]} 65. Kh6 {[%clk 0:00:10]}  Ke6 {[%clk 0:00:12]} 66. g7 {[%clk 0:00:11]}  Kf6 {[%clk 0:00:12]} 0-1


[Site "https://www.chess.com"]

[Event "Early Titled Tuesday Blitz | February 8 2022"]
[White "Budrewicz, Krzysztof"]
[Black "Khoroshev, Nikita"]
[WhiteFideId "1127950"]
[BlackFideId "14200287"]
[WhiteElo "2248"]
[BlackElo "2354"]
[Result "0-1"]
[Round "02"]
[TimeControl "180+1"]
[Date "2022.02.08"]
[WhiteClock "0:00:06"]
[BlackClock "0:00:04"]

1. d4 {[%clk 0:03:00]}  Nf6 {[%clk 0:02:59]} 2. c4 {[%clk 0:03:00]}  e6 {[%clk 0:02:56]} 3. Nf3 {[%clk 0:03:00]}  d5 {[%clk 0:02:53]} 4. Nc3 {[%clk 0:02:59]}  Bb4 {[%clk 0:02:53]} 5. e3 {[%clk 0:02:58]}  O-O {[%clk 0:02:48]} 6. Bd2 {[%clk 0:02:56]}  Nbd7 {[%clk 0:02:41]} 7. Rc1 {[%clk 0:02:52]}  c6 {[%clk 0:02:33]} 8. Bd3 {[%clk 0:02:50]}  Qe7 {[%clk 0:02:29]} 9. a3 {[%clk 0:02:48]}  Bd6 {[%clk 0:02:28]} 10. cxd5 {[%clk 0:02:40]}  exd5 {[%clk 0:02:25]} 11. O-O {[%clk 0:02:39]}  Ne4 {[%clk 0:02:22]} 12. Qc2 {[%clk 0:02:34]}  f5 {[%clk 0:02:07]} 13. b4 {[%clk 0:02:27]}  a6 {[%clk 0:02:03]} 14. Na4 {[%clk 0:02:26]}  Rb8 {[%clk 0:01:50]} 15. Nc5 {[%clk 0:02:26]}  Ndf6 {[%clk 0:01:50]} 16. Rce1 {[%clk 0:02:19]}  Ng4 {[%clk 0:01:23]} 17. h3 {[%clk 0:02:16]}  Ngf6 {[%clk 0:01:23]} 18. Bc1 {[%clk 0:02:16]}  a5 {[%clk 0:01:17]} 19. Ne5 {[%clk 0:02:10]}  axb4 {[%clk 0:01:11]} 20. axb4 {[%clk 0:02:09]}  Qc7 {[%clk 0:00:43]} 21. f3 {[%clk 0:01:20]}  Ng3 {[%clk 0:00:21]} 22. Rf2 {[%clk 0:01:20]}  b6 {[%clk 0:00:21]} 23. Nb3 {[%clk 0:01:05]}  Bxb4 {[%clk 0:00:18]} 24. Rd1 {[%clk 0:01:00]}  c5 {[%clk 0:00:18]} 25. Bb5 {[%clk 0:00:52]}  c4 {[%clk 0:00:14]} 26. Nd2 {[%clk 0:00:31]}  Bd6 {[%clk 0:00:14]} 27. Bb2 {[%clk 0:00:29]}  Ra8 {[%clk 0:00:09]} 28. Nb1 {[%clk 0:00:29]}  Ra5 {[%clk 0:00:09]} 29. Nc3 {[%clk 0:00:22]}  Bd7 {[%clk 0:00:06]} 30. Nxd7 {[%clk 0:00:19]}  Nxd7 {[%clk 0:00:06]} 31. Nxd5 {[%clk 0:00:19]}  Qb7 {[%clk 0:00:05]} 32. Bxd7 {[%clk 0:00:17]}  Qxd5 {[%clk 0:00:04]} 33. Rc1 {[%clk 0:00:10]}  b5 {[%clk 0:00:03]} 34. Bc3 {[%clk 0:00:07]}  b4 {[%clk 0:00:03]} 35. Be1 {[%clk 0:00:07]}  c3 {[%clk 0:00:03]} 36. Ba4 {[%clk 0:00:05]}  Kh8 {[%clk 0:00:03]} 37. Bb3 {[%clk 0:00:06]}  Qb7 {[%clk 0:00:03]} 38. Qd3 {[%clk 0:00:07]}  Qe7 {[%clk 0:00:03]} 39. Qc4 {[%clk 0:00:07]}  h6 {[%clk 0:00:03]} 40. Qd3 {[%clk 0:00:06]}  Re8 {[%clk 0:00:03]} 41. Bc2 {[%clk 0:00:06]}  Qxe3 {[%clk 0:00:03]} 42. Qxe3 {[%clk 0:00:07]}  Rxe3 {[%clk 0:00:04]} 43. f4 {[%clk 0:00:06]}  Ne2+ {[%clk 0:00:04]} 44. Rxe2 {[%clk 0:00:06]}  Rxe2 {[%clk 0:00:05]} 45. Bg3 {[%clk 0:00:06]}  Rd2 {[%clk 0:00:04]} 46. Bxf5 {[%clk 0:00:06]}  Rxf5 {[%clk 0:00:04]} 0-1


[Site "https://www.chess.com"]

[Event "Early Titled Tuesday Blitz | February 8 2022"]
[White "Bugayev, Vladimir"]
[Black "Golubka, Petro"]
[WhiteFideId "30901480"]
[BlackFideId "14114224"]
[WhiteElo "2365"]
[BlackElo "2392"]
[Result "0-1"]
[Round "02"]
[TimeControl "180+1"]
[Date "2022.02.08"]
[WhiteClock "0:00:21"]
[BlackClock "0:01:38"]

1. e4 {[%clk 0:03:00]}  c5 {[%clk 0:02:50]} 2. Nc3 {[%clk 0:03:00]}  Nc6 {[%clk 0:02:50]} 3. Bb5 {[%clk 0:02:59]}  Nd4 {[%clk 0:02:50]} 4. Nf3 {[%clk 0:02:59]}  Nxb5 {[%clk 0:02:49]} 5. Nxb5 {[%clk 0:03:00]}  a6 {[%clk 0:02:50]} 6. Nc3 {[%clk 0:03:01]}  d6 {[%clk 0:02:50]} 7. d4 {[%clk 0:03:02]}  cxd4 {[%clk 0:02:51]} 8. Qxd4 {[%clk 0:03:02]}  e5 {[%clk 0:02:50]} 9. Qb4 {[%clk 0:03:03]}  h6 {[%clk 0:02:46]} 10. Be3 {[%clk 0:03:02]}  Nf6 {[%clk 0:02:42]} 11. O-O-O {[%clk 0:02:57]}  Qc7 {[%clk 0:02:40]} 12. Bb6 {[%clk 0:02:44]}  Qe7 {[%clk 0:02:36]} 13. Qa5 {[%clk 0:02:09]}  Bg4 {[%clk 0:02:26]} 14. Rd3 {[%clk 0:02:01]}  Rc8 {[%clk 0:02:24]} 15. Rhd1 {[%clk 0:01:46]}  Rc6 {[%clk 0:02:21]} 16. Nd5 {[%clk 0:01:05]}  Nxd5 {[%clk 0:02:20]} 17. exd5 {[%clk 0:01:06]}  Rc8 {[%clk 0:02:18]} 18. Qa4+ {[%clk 0:01:01]}  Qd7 {[%clk 0:02:15]} 19. Qb4 {[%clk 0:00:55]}  Be7 {[%clk 0:02:06]} 20. h3 {[%clk 0:00:51]}  Bf5 {[%clk 0:02:05]} 21. Rc3 {[%clk 0:00:48]}  O-O {[%clk 0:02:04]} 22. g4 {[%clk 0:00:44]}  Bg6 {[%clk 0:02:02]} 23. Ne1 {[%clk 0:00:41]}  Rxc3 {[%clk 0:02:00]} 24. Qxc3 {[%clk 0:00:40]}  Rc8 {[%clk 0:02:01]} 25. Qb4 {[%clk 0:00:36]}  Bg5+ {[%clk 0:02:02]} 26. Kb1 {[%clk 0:00:35]}  f5 {[%clk 0:01:59]} 27. f3 {[%clk 0:00:33]}  fxg4 {[%clk 0:01:59]} 28. hxg4 {[%clk 0:00:33]}  Kh7 {[%clk 0:01:57]} 29. a4 {[%clk 0:00:29]}  Bh4 {[%clk 0:01:52]} 30. Nd3 {[%clk 0:00:27]}  Bf6 {[%clk 0:01:41]} 31. a5 {[%clk 0:00:26]}  e4 {[%clk 0:01:40]} 32. fxe4 {[%clk 0:00:26]}  Qxg4 {[%clk 0:01:39]} 33. Qxd6 {[%clk 0:00:21]}  Qxd1+ {[%clk 0:01:38]} 0-1


[Site "https://www.chess.com"]

[Event "Early Titled Tuesday Blitz | February 8 2022"]
[White "Buscar, Michael"]
[Black "Obolenskikh, Dmitry"]
[WhiteFideId "2603616"]
[BlackFideId "4156013"]
[WhiteElo "2010"]
[BlackElo "2512"]
[Result "1-0"]
[Round "02"]
[TimeControl "180+1"]
[Date "2022.02.08"]
[WhiteClock "0:00:16"]
[BlackClock "0:00:17"]

1. c4 {[%clk 0:03:00]}  e6 {[%clk 0:02:59]} 2. Nf3 {[%clk 0:02:56]}  d5 {[%clk 0:02:59]} 3. g3 {[%clk 0:02:52]}  c6 {[%clk 0:02:57]} 4. b3 {[%clk 0:02:50]}  Nf6 {[%clk 0:02:55]} 5. Bb2 {[%clk 0:02:50]}  Be7 {[%clk 0:02:54]} 6. Bg2 {[%clk 0:02:50]}  O-O {[%clk 0:02:54]} 7. O-O {[%clk 0:02:51]}  b6 {[%clk 0:02:54]} 8. cxd5 {[%clk 0:02:50]}  cxd5 {[%clk 0:02:54]} 9. Ne5 {[%clk 0:02:43]}  Nfd7 {[%clk 0:02:53]} 10. Nc4 {[%clk 0:02:33]}  Nc6 {[%clk 0:02:43]} 11. d3 {[%clk 0:02:29]}  Bb7 {[%clk 0:02:38]} 12. Ne3 {[%clk 0:02:28]}  Rc8 {[%clk 0:02:33]} 13. Nd2 {[%clk 0:02:23]}  Bf6 {[%clk 0:02:33]} 14. Qb1 {[%clk 0:02:16]}  Nd4 {[%clk 0:02:31]} 15. Re1 {[%clk 0:02:10]}  h5 {[%clk 0:02:21]} 16. Nf3 {[%clk 0:02:09]}  Nxf3+ {[%clk 0:02:16]} 17. Bxf3 {[%clk 0:02:09]}  h4 {[%clk 0:02:12]} 18. Ng4 {[%clk 0:02:00]}  Bc3 {[%clk 0:01:56]} 19. Rc1 {[%clk 0:01:50]}  Bxb2 {[%clk 0:01:56]} 20. Qxb2 {[%clk 0:01:51]}  Qg5 {[%clk 0:01:49]} 21. Ne3 {[%clk 0:01:34]}  hxg3 {[%clk 0:01:44]} 22. hxg3 {[%clk 0:01:34]}  Ne5 {[%clk 0:01:31]} 23. Bg2 {[%clk 0:01:25]}  Ng6 {[%clk 0:01:29]} 24. Rxc8 {[%clk 0:01:17]}  Rxc8 {[%clk 0:01:28]} 25. Rc1 {[%clk 0:01:18]}  Qd8 {[%clk 0:01:28]} 26. Rxc8 {[%clk 0:01:17]}  Qxc8 {[%clk 0:01:28]} 27. Qc2 {[%clk 0:01:17]}  Qd7 {[%clk 0:01:26]} 28. d4 {[%clk 0:01:03]}  Ba6 {[%clk 0:01:24]} 29. Nd1 {[%clk 0:01:00]}  Ne7 {[%clk 0:01:20]} 30. Nb2 {[%clk 0:00:59]}  Nf5 {[%clk 0:01:16]} 31. e3 {[%clk 0:00:59]}  Nd6 {[%clk 0:01:15]} 32. Bf1 {[%clk 0:00:57]}  Bxf1 {[%clk 0:01:14]} 33. Kxf1 {[%clk 0:00:57]}  g6 {[%clk 0:01:13]} 34. Nd3 {[%clk 0:00:57]}  Kg7 {[%clk 0:01:07]} 35. Kg2 {[%clk 0:00:56]}  Ne4 {[%clk 0:00:55]} 36. Ne5 {[%clk 0:00:54]}  Qe7 {[%clk 0:00:52]} 37. Nc6 {[%clk 0:00:41]}  Qc7 {[%clk 0:00:47]} 38. Nb4 {[%clk 0:00:39]}  Qd6 {[%clk 0:00:47]} 39. Nd3 {[%clk 0:00:39]}  Qa3 {[%clk 0:00:40]} 40. Ne5 {[%clk 0:00:38]}  Qe7 {[%clk 0:00:37]} 41. Nc6 {[%clk 0:00:38]}  Qc7 {[%clk 0:00:37]} 42. Nb4 {[%clk 0:00:39]}  Qd6 {[%clk 0:00:37]} 43. Nd3 {[%clk 0:00:38]}  a5 {[%clk 0:00:35]} 44. a4 {[%clk 0:00:36]}  g5 {[%clk 0:00:30]} 45. Ne5 {[%clk 0:00:26]}  Qe7 {[%clk 0:00:26]} 46. f3 {[%clk 0:00:20]}  Nf6 {[%clk 0:00:22]} 47. g4 {[%clk 0:00:20]}  Nh7 {[%clk 0:00:18]} 48. Kg3 {[%clk 0:00:16]}  Qd6 {[%clk 0:00:17]} 49. Kg2 {[%clk 0:00:16]}  f6 {[%clk 0:00:17]} 50. Qg6+ {[%clk 0:00:16]} 1-0


[Site "https://www.chess.com"]

[Event "Early Titled Tuesday Blitz | February 8 2022"]
[White "Bychkov, Vladimir"]
[Black "Cherniaiev, Tykhon"]
[WhiteFideId "24151513"]
[BlackFideId "14182360"]
[WhiteElo "2253"]
[BlackElo "2289"]
[Result "0-1"]
[Round "02"]
[TimeControl "180+1"]
[Date "2022.02.08"]
[WhiteClock "0:00:08"]
[BlackClock "0:00:11"]

1. Nf3 {[%clk 0:02:55]}  Nf6 {[%clk 0:02:59]} 2. c4 {[%clk 0:02:55]}  c5 {[%clk 0:02:59]} 3. g3 {[%clk 0:02:55]}  Nc6 {[%clk 0:02:59]} 4. Bg2 {[%clk 0:02:56]}  g6 {[%clk 0:03:00]} 5. O-O {[%clk 0:02:56]}  Bg7 {[%clk 0:03:00]} 6. Nc3 {[%clk 0:02:56]}  O-O {[%clk 0:03:00]} 7. Ne1 {[%clk 0:02:56]}  e6 {[%clk 0:03:00]} 8. e4 {[%clk 0:02:55]}  d5 {[%clk 0:02:58]} 9. cxd5 {[%clk 0:02:54]}  exd5 {[%clk 0:02:58]} 10. exd5 {[%clk 0:02:50]}  Nb4 {[%clk 0:02:56]} 11. Qb3 {[%clk 0:02:49]}  Bf5 {[%clk 0:02:39]} 12. h3 {[%clk 0:02:26]}  Re8 {[%clk 0:02:36]} 13. g4 {[%clk 0:02:24]}  Nxg4 {[%clk 0:02:03]} 14. hxg4 {[%clk 0:02:11]}  Bxg4 {[%clk 0:02:04]} 15. a3 {[%clk 0:02:05]}  Qh4 {[%clk 0:02:01]} 16. Ne4 {[%clk 0:01:52]}  Nxd5 {[%clk 0:00:52]} 17. Qg3 {[%clk 0:01:48]}  Qh5 {[%clk 0:00:49]} 18. Qh2 {[%clk 0:01:34]}  Qxh2+ {[%clk 0:00:28]} 19. Kxh2 {[%clk 0:01:34]}  Nf4 {[%clk 0:00:29]} 20. d3 {[%clk 0:01:27]}  Nxg2 {[%clk 0:00:26]} 21. Kxg2 {[%clk 0:01:28]}  Rad8 {[%clk 0:00:24]} 22. f3 {[%clk 0:01:27]}  Bf5 {[%clk 0:00:23]} 23. Bg5 {[%clk 0:01:26]}  Rd5 {[%clk 0:00:20]} 24. Nf6+ {[%clk 0:01:23]}  Bxf6 {[%clk 0:00:20]} 25. Bxf6 {[%clk 0:01:24]}  Re6 {[%clk 0:00:20]} 26. Bc3 {[%clk 0:01:23]}  Re2+ {[%clk 0:00:14]} 27. Rf2 {[%clk 0:01:23]}  Bh3+ {[%clk 0:00:13]} 28. Kxh3 {[%clk 0:00:37]}  Rxf2 {[%clk 0:00:13]} 29. Kg3 {[%clk 0:00:37]}  Re2 {[%clk 0:00:14]} 30. Rd1 {[%clk 0:00:28]}  Rg5+ {[%clk 0:00:12]} 31. Kf4 {[%clk 0:00:28]}  Rf5+ {[%clk 0:00:12]} 32. Kg3 {[%clk 0:00:28]}  h5 {[%clk 0:00:13]} 33. d4 {[%clk 0:00:26]}  Rd5 {[%clk 0:00:11]} 34. Nd3 {[%clk 0:00:15]}  cxd4 {[%clk 0:00:11]} 35. Nf4 {[%clk 0:00:12]}  Rg5+ {[%clk 0:00:11]} 36. Kh4 {[%clk 0:00:11]}  Ree5 {[%clk 0:00:11]} 37. Bxd4 {[%clk 0:00:11]}  Ref5 {[%clk 0:00:12]} 38. Nh3 {[%clk 0:00:09]}  Rg2 {[%clk 0:00:11]} 39. Re1 {[%clk 0:00:08]}  f6 {[%clk 0:00:11]} 40. Re7 {[%clk 0:00:09]}  Rxf3 {[%clk 0:00:11]} 41. Rxb7 {[%clk 0:00:08]}  Rg4# {[%clk 0:00:11]} 0-1


[Site "https://www.chess.com"]